Cogmind - Beta 16 @@@ ROGUE MODE // 2025.12.13 @ 18:23:14 Player: The Overplayer Result: Destroyed by GJ-FW9(R) with Subdweller Laser Performance ------------- Evolutions (0) 0 Regions Visited (2) 400 Robots Destroyed (19) 95 Value Destroyed (405) 405 Prototype IDs (0) 0 Alien Tech Used (0) 0 Bonus (0) 0 TOTAL SCORE: 900 Bonus ------- None Cogmind --------- Core Integrity 0/250 Matter 205/300 Energy 100/100 System Corruption 0% Temperature Cool (6) Movement Walking (120) Location -10/Subcaves Parts ------- > --- POWER (1) -------- (None) > --- PROPULSION (2) --- Improved Aluminum Leg Improved Aluminum Leg > --- UTILITY (2) ------ Small Storage Unit Makeshift Kinetic Plating > --- WEAPON (2) ------- Rocket Launcher Rocket Launcher > --- INVENTORY (8) ---- Improved Aluminum Leg Riot Gun Battle Rifle Battle Cannon Subdweller Shrapnel Launcher Welding Torch Scrap Shield Fragment (43) Peak State ------------ > --- POWER ------------ Light Ion Engine > --- PROPULSION ------- Improved Aluminum Leg Improved Aluminum Leg > --- UTILITY ---------- Small Storage Unit Makeshift Kinetic Plating > --- WEAPON ----------- Rocket Launcher Rocket Launcher > --- INVENTORY -------- Improved Aluminum Leg Improved Hover Unit Riot Gun Welding Torch Scrap Shield Fragment [Rating: 15] Favorites ----------- Power Light Ion Engine Engine Light Ion Engine Propulsion Improved Aluminum Leg Leg Improved Aluminum Leg Hover Unit Improved Hover Unit Utility Small Storage Unit Device Improved Terrain Scanner Storage Small Storage Unit Protection Makeshift Kinetic Plating Weapon Rocket Launcher Energy Gun Medium Laser Ballistic Gun Light Assault Rifle Launcher Rocket Launcher Build | -11 -10 -10 ------- Run | Yrd Mat Sub Slots Evolved . | . . . Power . | . . . Propulsion . | . . . Utility . | . . . Weapon . | . . . Parts Attached 20 | 7 11 2 Power 2 | 1 1 . Engine 2 | 1 1 . Core . | . . . Reactor . | . . . Propulsion 9 | 2 7 . Treads . | . . . Leg 5 | 2 3 . Wheel . | . . . Hover 4 | . 4 . Flight . | . . . Utility 4 | 2 1 1 Device 2 | 1 1 . Storage 1 | 1 . . Processor . | . . . Hackware . | . . . Protection 1 | . . 1 Artifact . | . . . Weapon 5 | 2 2 1 Energy Gun 1 | 1 . . Energy Cannon . | . . . Ballistic Gun 1 | 1 . . Ballistic Cannon . | . . . Launcher 3 | . 2 1 Special Weapon . | . . . Impact Weapon . | . . . Slashing Weapon . | . . . Piercing Weapon . | . . . Special Melee Weapon . | . . . Unidentified Prototypes . | . . . Parts Lost 7 | . 6 1 Power 2 | . 1 1 Propulsion 2 | . 2 . Utility 1 | . 1 . Weapon 2 | . 2 . Highest Loss Streak 6 | . 6 1 To Critical Strikes . | . . . Average Backups 4 | . 5 4 Power . | . . . Propulsion 2 | . 3 1 Utility . | . . . Weapon 1 | . 1 2 Tool/Special . | . . . Unused Backups 6 | . 3 3 Power . | . . . Propulsion . | . . . Utility 2 | . 2 . Weapon 4 | . 1 3 Tool/Special . | . . . Average Slot Usage (%) 85 | . 76 93 Engine 10 | . 7 13 Leg 19 | . 10 28 Hover 7 | . 14 . Device 3 | . 8 . Storage 14 | . 14 14 Protection 4 | . . 8 Energy Gun 3 | . 8 . Ballistic Gun 3 | . 7 . Launcher 16 | . 4 28 Peak Build Rating 15 | 9 13 15 Average Rating 10 | 7 9 13 On Entrance 5 | . 9 8 Avg Prop Armor Cover (%) . | . . . Naked Turns . | . . . Heaviest Build 27 | 12 15 27 Greatest Support 26 | 20 26 26 Greatest Overweight (x) 3 | . 3 1 Average Overweight (x) . | . . . Largest Inventory Capacity 8 | 8 8 8 Average Capacity 7 | 7 8 8 Most Carried 8 | 1 8 8 Average Carried 4 | . 5 5 Final Capacity 8 | 8 8 8 Final Carried 7 | 1 4 7 Class Distribution -------------------- 100% | Mutant Dominant Class ---------------- Mutant | -10/Materials Mutant | -10/Subcaves Resources | -11 -10 -10 ----------- Run | Yrd Mat Sub Matter Collected 564 | 270 101 193 Remotely . | . . . Salvage Created 506 | 168 196 142 Parts 33 | 10 13 10 Haulers Intercepted 1 | . 1 . Recyclers Shooed . | . . . Parts Field Recycled . | . . . Retrieved Matter . | . . . Parts Self-Destructed 5 | . . 5 Prevented . | . . . Parts Restored . | . . . Kills | -11 -10 -10 ------- Run | Yrd Mat Sub Combat Hostiles Destroyed 9 | . 2 7 Guns 2 | . 2 . AOE 7 | . . 7 Classes Destroyed 9 | 2 4 3 Builder 2 | . 2 . Tunneler 5 | 4 1 . Hauler 1 | . 1 . Recycler 1 | 1 . . Watcher 1 | . 1 . Swarmer 1 | . . 1 Grunt 2 | . 2 . Sentry 1 | . . 1 Subdweller 5 | . . 5 Best Kill Streak 2 | 2 2 2 Combat Bots Only 2 | . 2 2 Max Kills in Single Turn 2 | 1 2 2 Gunslinging . | . . . Exploded 2 | . . 2 Melee . | . . . Uniques/NPCs Destroyed . | . . . Combat | -11 -10 -10 -------- Run | Yrd Mat Sub Hostile Shots Fired 75 | . 63 12 Missed 19 | . 16 3 Hits 56 | . 47 9 Projectile 56 | . 47 9 Critical Strikes 1 | . 1 . Damage Taken 818 | . 626 192 Core 268 | . 245 23 Absorbed by Shields . | . . . Ignored by Resistances 5 | . . 5 Core Remaining (%) 100 | 100 . . Volleys Fired 61 | 25 28 8 Largest 2 | 1 2 2 Hottest 70 | 50 70 66 Shots Fired 92 | 25 51 16 Gun 74 | 25 49 . Cannon . | . . . Launcher 18 | . 2 16 Special . | . . . Kinetic 23 | . 23 . Thermal 51 | 25 26 . Explosive 18 | . 2 16 Electromagnetic . | . . . Robot Hit Streak 6 | 5 6 6 Robot Miss Streak 3 | 2 3 2 Penetration Max . | . . . Secondary Targets . | . . . Shots Hit Robots 57 | 18 30 9 Core Hits 29 | 6 13 10 Critical Kills . | . . . Critical Parts Destroyed . | . . . Critical Strikes 5 | 3 2 . Burn 5 | 3 2 . Melee Attacks . | . . . Impact . | . . . Slashing . | . . . Piercing . | . . . Sneak Attacks . | . . . Combat Hostiles . | . . . Follow-up Attacks . | . . . Damage Inflicted 1368 | 238 464 666 Guns 567 | 238 329 . Cannons . | . . . Explosions 792 | . 126 666 Melee . | . . . Ramming 9 | . 9 . Kinetic 106 | . 106 . Thermal 461 | 238 223 . Explosive 792 | . 126 666 Electromagnetic . | . . . Impact . | . . . Slashing . | . . . Piercing . | . . . Highest Corruption . | . . . Average Corruption . | . . . Corruption Purged . | . . . Corruption Blocked . | . . . Overload Shots . | . . . Overflow Damage . | . . . Projectiles . | . . . Explosions . | . . . Melee . | . . . Knockbacks . | . . . Impact . | . . . Kinetic . | . . . Secondary . | . . . Self-Inflicted Damage 42 | . 4 38 Shots 1 | . . 1 Rammed 2 | . 2 . Targets Rammed 2 | . 2 . Kicked . | . . . Crushed . | . . . Highest Temperature 354 | 60 354 . Average Temperature 97 | 17 147 . Received Heat Transfer 402 | . 378 24 Siege Activations . | . . . Martial Activations . | . . . Shielding Activations . | . . . Robots Disrupted . | . . . Combat Hostiles . | . . . Robots Corrupted . | . . . Combat Hostiles . | . . . Parts Fried . | . . . Impact Corruptions . | . . . Robots Melted . | . . . Combat Hostiles . | . . . Parts Melted 2 | 1 1 . Heat Transferred 1739 | 925 814 . Parts Sabotaged . | . . . Parts Stolen . | . . . Parts Stripped . | . . . Power Chain Reactions . | . . . Alert | -11 -10 -10 ------- Run | Yrd Mat Sub Maximum Alert Level . | . . . Low Security (%) 100 | 100 100 . Level 1 . | . . . Level 2 . | . . . Level 3 . | . . . Level 4 . | . . . Level 5 . | . . . High Security . | . . . Max Security . | . . . Peak Influence 44 | 10 44 . Initial . | . . . Average 6 | 1 8 . Influence Increases 271 | 25 206 40 Destroy 0b10 Robot/C 80 | . 40 40 Destroy 0b10 Robot/NC 50 | 25 25 . Destroy Leader 14 | . 14 . Successful Hack 10 | . 10 . Destroy Structure 12 | . 12 . Partial Spotted 45 | . 45 . Lose Combat Pursuer 60 | . 60 . Influence Decreases 271 | 25 201 45 Entered New Map 3 | . . 3 Time Decay 212 | 25 145 42 Lost Part 56 | . 56 . Squads Dispatched . | . . . Investigation . | . . . Extermination . | . . . Reinforcement . | . . . Assault . | . . . Garrison . | . . . Intercept . | . . . Searches Triggered . | . . . Construction Impeded . | . . . Haulers Reinforced . | . . . Active Scanning Responses . | . . . Cargo Convoy Interrupts . | . . . Stealth | -11 -10 -10 --------- Run | Yrd Mat Sub Distress Signals 1 | . 1 . Communications Jammed . | . . . Distress Signals . | . . . Times Spotted 16 | . 8 8 Peak Tracking Total 5 | . 5 2 Tactical Retreats 3 | . 3 . Traps | -11 -10 -10 ------- Run | Yrd Mat Sub Traps Triggered 2 | . 2 . Indirectly . | . . . Trap Hack Attempts . | . . . Triggered . | . . . Disarmed . | . . . Reprogrammed . | . . . Reused . | . . . Traps Extracted . | . . . Installed . | . . . Triggered . | . . . Machines | -11 -10 -10 ---------- Run | Yrd Mat Sub Machines Disabled . | . . . Max in Single Turn . | . . . Machines Repaired . | . . . Machines Dismantled . | . . . Machines Sabotaged . | . . . Overloaded Fab Kills . | . . . Hacking | -11 -10 -10 --------- Run | Yrd Mat Sub Machines Accessed 5 | . 4 1 Terminals 3 | . 3 . Fabricators . | . . . Repair Stations . | . . . Recycling Units 1 | . 1 . Scanalyzers . | . . . Garrison Access . | . . . Total Hacks 11 | . 8 3 Successful 7 | . 4 3 Failed 4 | . 4 . Catastrophic 1 | . 1 . Database Lockouts . | . . . Manual 1 | . 1 . Terminals 5 | . 5 . Fabricators . | . . . Repair Stations . | . . . Recycling Units 3 | . 3 . Scanalyzers . | . . . Garrison Access . | . . . Terminal Hacks 5 | . 2 3 Record 3 | . . 3 Zone Layout 2 | . 2 . Fabricator Hacks . | . . . Repair Station Hacks . | . . . Recycling Unit Hacks 2 | . 2 . Report Inventory 1 | . 1 . Retrieve Components 1 | . 1 . Scanalyzer . | . . . Garrison Access Hacks . | . . . Unauthorized Hacks . | . . . Terminals . | . . . Fabricators . | . . . Repair Stations . | . . . Recycling Units . | . . . Scanalyzers . | . . . Garrison Access . | . . . Data Cores Recovered . | . . . Used . | . . . Hacking Detections 3 | . 3 . Full Trace Events . | . . . Feedback Events . | . . . Feedback Blocked . | . . . Robot Schematics Acquired . | . . . Robots Built . | . . . Authchips . | . . . Time . | . . . Total Robot Build Rating . | . . . Part Schematics Acquired . | . . . Parts Built . | . . . Authchips . | . . . Time . | . . . Total Part Build Rating . | . . . Part Studies Acquired . | . . . Parts Repaired . | . . . Time . | . . . Parts Recycled . | . . . Recycled Matter . | . . . Retrieved Matter . | . . . Retrieved Components 8 | . 8 . Parts Scanalyzed . | . . . Part Schematics Acquired . | . . . Parts Damaged . | . . . Bothacking | -11 -10 -10 ------------ Run | Yrd Mat Sub Used RIF Installer . | . . . Robots Hacked . | . . . Non-combat . | . . . Combat . | . . . Robot Hacks Applied . | . . . Relay Couplers Released . | . . . Fabnet Peak Effective % . | . . . Robots Rewired . | . . . Allies Hacked . | . . . Hacks Repelled . | . . . Allies | -11 -10 -10 -------- Run | Yrd Mat Sub Total Allies . | . . . Largest Group . | . . . Highest-Rated Group . | . . . Highest-Rated Ally . | . . . Total Orders . | . . . Ally Attacks . | . . . Total Damage . | . . . Kills . | . . . Allies Corrupted . | . . . Allies Melted . | . . . Intel | -11 -10 -10 ------- Run | Yrd Mat Sub Active Infowar (turns) 499 | 91 408 . Terrain 499 | 91 408 . Robot Analysis Total . | . . . Derelict Logs Recovered 1 | . . 1 Drone Launches . | . . . Drone Recoveries . | . . . Exploration | -11 -10 -10 ------------- Run | Yrd Mat Sub Turns Passed 1700 | 171 742 787 Spaces Moved 1161 | 95 447 619 Core 13 | 5 8 . Treads . | . . . Legs 750 | 90 41 619 Wheels . | . . . Hover 398 | . 398 . Flight . | . . . Fastest Speed 50 | 50 56 120 Average Speed 99 | 116 65 121 Slowest Speed 200 | 120 200 190 Overloaded Moves . | . . . Propulsion Burnouts . | . . . Robots Hopped . | . . . Potential Cave-ins . | . . . Cave-ins Triggered . | . . . Exploration Rate (%) 35 | 4 66 37 Regions Visited 2 Branch Regions 1 Pre-discovered Areas 2 | . . 2 Known Exits Taken . | . . . Unknown Exits Taken 2 | 1 1 . Scrap Searched 4 | . . 4 Spaces Dug . | . . . Terrain Destroyed 108 | . 18 90 Melee . | . . . Projectile . | . . . AOE 108 | . 18 90 Terrain Rammed . | . . . Walls Destroyed . | . . . Machines Disabled . | . . . Actions | -11 -10 -10 --------- Run | Yrd Mat Sub Total 1615 | 127 849 639 Wait 343 | . 343 . Move 1159 | 94 446 619 Hop . | . . . Pick Up 16 | 1 10 5 Fast Attach 16 | 7 7 2 Attach 5 | . 4 1 Detach . | . . . Swap 6 | . 4 2 Drop 7 | . 5 2 Fire 61 | 25 28 8 Melee . | . . . Ram 2 | . 2 . Kick . | . . . Crush . | . . . Escape Stasis . | . . . Rewire . | . . . Trap . | . . . Miscellaneous . | . . . Route ------- -11/Scrapyard -10/Materials (discovered 4 exits: [*Mat x2] / [*Min] / *Sub) -10/Subcaves History --------- Turn | Location | Event 11 | -11/Scrapyard | Discovered new exit (range 15) 172 | -11/Scrapyard | Entered Materials 257 | -10/Materials | Discovered new exit (range 13) 310 | -10/Materials | Discovered new exit (range 15) 317 | -10/Materials | Build established: Mutant 583 | -10/Materials | Core integrity fell below 50% 605 | -10/Materials | Core integrity fell below 20% 621 | -10/Materials | Lost 6 parts (1p2n1u2w) 637 | -10/Materials | Discovered new exit (range 14) 890 | -10/Materials | Discovered new exit (range 11) 914 | -10/Materials | Entered Subcaves 1084 | -10/Subcaves | Visited Clippyterm 1087 | -10/Subcaves | Learned location of Section 7 (-2) 1242 | -10/Subcaves | Learned location of Mines (-9) 1346 | -10/Subcaves | A swath of the cavern ceiling suddenly collapsed 1701 | -10/Subcaves | Ambushed by Subdwellers from Twisted Machinery 1701 | -10/Subcaves | Destroyed by GJ-FW9(R) with Subdweller Laser Last Messages --------------- 01282_ Dropped Imp. Hover Unit. 01305_ Acquired 15 matter. A swath of the cavern ceiling suddenly collapses. 01401_ MC-KSW(R): "OHNO!" 01405_ MC-KSW(R) destroyed. 01419_ Acquired 3 matter. 01650_ Subatomizers dissect the Imp. Hover Unit. 01661_ Subatomizers dissect the Imp. Hover Unit, destroying it. 01684_ TC-NDH(R) destroyed. 01686_ Lgt. Ion Engine destroyed. 01689_ The unstable cave ceiling collapses. 01692_ 7V-KDE(R) affixes Scrap Shield Fragment to Scrap Shield. 01693_ Destroyed Scrap Shield. 01693_ 7V-KDE(R) destroyed. 01694_ The unstable cave ceiling collapses. 01701_ GJ-FW9(R) emerges from the Twisted Machinery. Map ----- +----------------------------------------------------+ | ?????????????????????????????????????????????????? | | ?????????????????????????????????????????????????? | | ?????????????????????????????????????????????????? | | ?????????????????????????????????????????????????? | | ?????????????????????????????????????????????????? | | ?????????????????????????????????????????????????? | | ?????????????????????????????????????????????????? | | ?????????????????????????????????????????????????? | | ?????????????????????????????????????????????????? | | ?????????????????????????????????????????????????? | | ?????????????????????????????????????????????????? | | ???????????????????????##??##????????????????????? | | ???????????????????#### ?" ##???????????????????? | | ???????????????????# ?"R "#??????????????????? | | ???????????????????# #??????????????????? | | ???????????????????# ??????????????????? | | ???????????????????# & ???????????????????? | | ???????????????????# # ???????????????????? | | ???????????????????? # ????????????????????? | | ????????????????????? ????????????????????? | | ????????????????????? ?????????????????????? | | ?????????????????????? ?????????????????????? | | ??????????????????????? ??????????????????????? | | ???????????????????????# ??????????????????????? | | ???????????????????????# #??????????????????????# | | ????????????????????????#@##?????????????????????# | | ????????????????????????# ##????????????????????# | | ???????????????????????## #???????????????????## | | ???????????????????????# ##??????????????????##" | | ???????????????????????# ##??????????????????# " | | ???????????????????????# #????????????????### | | ???????????????????????## #????????????????# | | ????????????????????????# #????????????????# | | ?????????????????????#### ##????????????????#### | | ?????????????????????# #???????????????????## | | ?????????????????????## #???????????????##???? | | ??????????????????????## #????#??????????# #??? | | ???????????????????????# u##???# ?????????# #?# | | ??????????????????????## ###?# ?????????# ?# | | ?????????????????????## ### #?# ?????????# ## | | ?????????????????????# #### #?# #????????# | | ?????????????????????# ### ##?? #???????## | | ?????????????????????# #???? #???????## | | ?????????????????????## ###???# ##??????# | | ??????????????????????# #?### ####??## | | ??????????????????????## %#?# ##?# | | ???????????????????????# ##?# ### # | | ???????????????????????## ##?## ## # | | ????????????????????????### #### ## | | ????????????????????####??## ## ##? | +----------------------------------------------------+ Best States ------------- Heat Dissipation 35 Energy Generation 10 Energy Capacity 125 Matter Stores 300 Matter Capacity 300 Sight Range 16 Terrain Scan Range 16 Terrain Scan Density 10 Armor Coverage 100 Resistance: KI 10 Evasion (%) 55 Item Schematics ----------------- None Robot Schematics ------------------ None Fabricated ------------ Nothing Repaired ---------- Nothing Studied --------- None Alien Tech Used ----------------- None Achievements -------------- Resistances Are Futile Challenges ------------ None Game ------ Seed IonShadeCharge Manual? 0 Play Time 00:13:01 Cumulative 50.2 hours Start 2025.12.13 @ 18:11:13 End 2025.12.13 @ 18:23:14 Sessions 1 Manual Loads 0 Difficulty Rogue Special Mode None Game No. 52 Rogue 52 Adventurer 0 Explorer 0 Win Type - Total 0 Types 0/0/0/0/0/0/0/0/0/0 Lore% 23 Gallery% 41 Achievement% 32 Wizard Run 0 Options --------- Layout 1 ASCII 0 Keyboard 0 Movement Mouse Keybinds 0 Fullscreen 1 Font 24/Smallcaps Map View 50x35 Zoom Use 0% Tactical HUD 1 Map Filters NONE Filters NONE Steam 1 RUN: ad9c9375-bee1-41b1-9c5b-781089f8dbd6